Cogmind - Beta 17 @@@ ROGUE MODE // 2026.08.03 @ 16:37:11 Player: MeatnTaters Result: Destroyed by S-27 Virus with Autogun Performance ------------- Evolutions (4) 2000 Regions Visited (7) 1400 Robots Destroyed (57) 285 Value Destroyed (1891) 1891 Prototype IDs (2) 40 Alien Tech Used (0) 0 Bonus (266) 266 TOTAL SCORE: 5882 Bonus ------- Follower Combat Kills 266 Cogmind --------- Core Integrity 0/850 Matter 67/300 Energy 67/300 System Corruption 5% Temperature Warm (131) Movement Core (300) Ox5 Location -6/Lower Caves Parts ------- > --- POWER (2) -------- Angular Momentum Engine > --- PROPULSION (4) --- (None) > --- UTILITY (5) ------ Improved Shield Generator > --- WEAPON (4) ------- (None) > --- INVENTORY (5) ---- Gravmag System Magnetic Acceleration Cannon Peak State ------------ > --- POWER ------------ Angular Momentum Engine Angular Momentum Engine > --- PROPULSION ------- Aluminum Leg Aluminum Leg Carbon-fiber Leg Titanium Leg > --- UTILITY ---------- Improved Heat Sink Small Storage Unit ECM Suite Improved Light Armor Plating Hacking Suite > --- WEAPON ----------- Improved Light Cannon Improved Light Cannon Mini Assault Cannon Improved Datajack > --- INVENTORY -------- Light Deuterium Engine Light Nuclear Core Light Armor Plating Light Armor Plating Beam Rifle Field Laser Grenade Launcher [Rating: 42] Favorites ----------- Power Improved Ion Engine Engine Improved Ion Engine Power Core Light Nuclear Core Propulsion Aluminum Leg Leg Aluminum Leg Flight Unit Biomechanical Wings Utility Small Storage Unit Device ECM Suite Storage Small Storage Unit Hackware Hacking Suite Protection Light Armor Plating Weapon Improved Light Cannon Energy Gun Beam Rifle Energy Cannon Heavy Plasma Cannon Ballistic Cannon Improved Light Cannon Launcher Grenade Launcher Special Melee Weapon Improved Datajack Build | -11 -10 -9 -9 -8 -7 -6 -6 ------- Run | Yrd Mat Mat Sto Mat Fac Fac Low Slots Evolved 8 | . . 2 . 2 2 2 . Power 1 | . . . . . . 1 . Propulsion 2 | . . 1 . 1 . . . Utility 3 | . . . . . 2 1 . Weapon 2 | . . 1 . 1 . . . Parts Attached 45 | 6 1 5 8 4 4 15 2 Power 9 | 1 . 1 1 . 1 4 1 Engine 8 | 1 . 1 1 . . 4 1 Core 1 | . . . . . 1 . . Reactor . | . . . . . . . . Propulsion 10 | 2 . . 3 2 . 3 . Treads . | . . . . . . . . Leg 9 | 2 . . 3 2 . 2 . Wheel . | . . . . . . . . Hover . | . . . . . . . . Flight 1 | . . . . . . 1 . Utility 11 | 1 1 . 1 . 2 5 1 Device 5 | . . . . . 1 3 1 Storage 2 | 1 . . . . . 1 . Processor . | . . . . . . . . Hackware 1 | . . . . . 1 . . Protection 3 | . 1 . 1 . . 1 . Artifact . | . . . . . . . . Weapon 15 | 2 . 4 3 2 1 3 . Energy Gun 5 | 2 . 2 . 1 . . . Energy Cannon 1 | . . . . . . 1 . Ballistic Gun . | . . . . . . . . Ballistic Cannon 5 | . . . 3 . . 2 . Launcher 2 | . . 2 . . . . . Special Weapon . | . . . . . . . . Impact Weapon . | . . . . . . . . Slashing Weapon . | . . . . . . . . Piercing Weapon . | . . . . . . . . Special Melee Weapon 2 | . . . . 1 1 . . Unidentified Prototypes 2 | . . . 1 . . 1 . Parts Lost 30 | . . 2 1 1 . 25 1 Power 4 | . . . . . . 4 . Propulsion 8 | . . . 1 1 . 6 . Utility 8 | . . . . . . 8 . Weapon 10 | . . 2 . . . 7 1 Highest Loss Streak 12 | . . 2 1 1 . 12 1 To Critical Strikes . | . . . . . . . . Average Backups 5 | 1 5 6 6 7 7 3 4 Power 1 | . 1 . 1 . 2 1 . Propulsion . | . 2 2 1 . . . 1 Utility 1 | . . 1 1 3 2 . . Weapon 2 | . 2 2 2 3 3 1 1 Tool/Special . | . . . . . . . . Unused Backups 5 | . . 1 2 . . 1 1 Power 2 | . . 1 . . . 1 . Propulsion 3 | . . . 2 . . . 1 Utility . | . . . . . . . . Weapon . | . . . . . . . . Tool/Special . | . . . . . . . . Average Slot Usage (%) 80 | . 92 82 89 99 99 55 1 Engine 7 | . 14 11 11 9 2 6 . Core 1 | . . . . . 4 1 . Leg 22 | . 28 22 23 35 30 10 . Device 4 | . . . . . 6 11 . Storage 7 | . 14 11 11 9 7 3 . Hackware 2 | . . . . . 7 2 . Protection 7 | . 6 11 11 9 7 2 . Energy Gun 8 | . 28 21 12 4 . 1 . Ballistic Cannon 13 | . . . 18 22 23 11 . Launcher 1 | . . 6 1 . . . . Special Melee Weapon 2 | . . . . 8 7 1 . Peak Build Rating 42 | 6 7 11 17 23 30 42 14 Average Rating 18 | 4 6 9 13 21 29 25 3 On Entrance 12 | . 6 7 11 17 23 30 2 Avg Prop Armor Cover (%) . | . . . . . . . . Naked Turns 183 | . . . . . . 78 105 Heaviest Build 50 | 14 17 22 26 28 30 50 17 Greatest Support 52 | 20 20 20 30 52 52 52 3 Greatest Overweight (x) 10 | 1 . 1 2 . . 10 5 Average Overweight (x) . | . . . . . . . . Largest Inventory Capacity 8 | 8 8 8 8 8 8 8 5 Average Capacity 7 | 7 8 8 8 8 8 6 5 Most Carried 8 | 4 7 7 8 8 8 8 5 Average Carried 6 | 1 5 6 6 7 7 3 4 Final Capacity 8 | 8 8 8 8 8 8 5 5 Final Carried 8 | 4 7 6 8 8 8 5 2 Class Distribution -------------------- 39% | Tank 31% | Mutant 25% | Scavenger-Tank 3% | Commander-Tank Dominant Class ---------------- Mutant | -10/Materials Tank | -9/Materials Tank | -9/Storage Scavenger-Tank | -8/Materials Tank | -7/Factory Mutant | -6/Factory Mutant | -6/Lower Caves Resources | -11 -10 -9 -9 -8 -7 -6 -6 ----------- Run | Yrd Mat Mat Sto Mat Fac Fac Low Matter Collected 1379 | 150 120 160 213 316 145 213 62 Remotely . | . . . . . . . . Salvage Created 2104 | . 50 450 556 282 131 578 57 Parts 106 | . . 24 28 26 8 15 5 Haulers Intercepted . | . . . . . . . . Recyclers Shooed 2 | . . 1 . . . 1 . Parts Field Recycled . | . . . . . . . . Retrieved Matter . | . . . . . . . . Parts Self-Destructed . | . . . . . . . . Prevented . | . . . . . . . . Parts Restored . | . . . . . . . . Kills | -11 -10 -9 -9 -8 -7 -6 -6 ------- Run | Yrd Mat Mat Sto Mat Fac Fac Low Combat Hostiles Destroyed 38 | . 1 9 7 7 3 9 2 Guns 10 | . . 7 2 1 . . . Cannons 22 | . . . 5 6 3 6 2 AOE 5 | . . 2 . . . 3 . Classes Destroyed 9 | . 1 4 1 1 2 . . Worker 2 | . . . . . 1 1 . Builder 2 | . . . . 2 . . . Recycler 7 | . . 2 2 1 . 2 . Operator 1 | . . . 1 . . . . Watcher 6 | . . 2 1 3 . . . Swarmer 10 | . . 4 . 4 . . 2 Grunt 15 | . 1 . 2 2 2 8 . Sentry 12 | . . 5 6 1 . . . Programmer 2 | . . . . . 1 1 . Best Kill Streak 11 | . 1 11 3 9 2 5 2 Combat Bots Only 8 | . 1 8 2 4 2 4 2 Max Kills in Single Turn 3 | . 1 3 2 2 1 2 1 Gunslinging . | . . . . . . . . Exploded 2 | . . 1 . . . 2 . Melee . | . . . . . . . . Uniques/NPCs Destroyed . | . . . . . . . . Combat | -11 -10 -9 -9 -8 -7 -6 -6 -------- Run | Yrd Mat Mat Sto Mat Fac Fac Low Hostile Shots Fired 384 | . 7 45 21 49 15 220 27 Missed 117 | . 2 11 7 14 9 72 2 Hits 267 | . 5 34 14 35 6 148 25 Projectile 267 | . 5 34 14 35 6 148 25 Critical Strikes 6 | . . 1 1 . 1 3 . Damage Taken 4025 | . 57 402 209 358 81 2562 356 Core 973 | . . 64 . 28 28 651 202 Absorbed by Shields 108 | . . . . . . 88 20 Core Remaining (%) 94 | 100 100 . 84 94 96 . . Volleys Fired 113 | . 6 19 19 23 5 36 5 Largest 3 | . 2 3 3 3 3 3 1 Hottest 136 | . 80 126 129 136 106 136 90 Shots Fired 279 | . 12 45 55 69 15 78 5 Gun 85 | . 12 35 23 9 . 6 . Cannon 183 | . . . 32 60 15 71 5 Launcher 11 | . . 10 . . . 1 . Special . | . . . . . . . . Kinetic 174 | . . . 32 60 15 67 . Thermal 65 | . . 18 23 9 . 10 5 Explosive 11 | . . 10 . . . 1 . Electromagnetic 29 | . 12 17 . . . . . Robot Hit Streak 12 | . 7 9 7 6 5 12 8 Robot Miss Streak 10 | . 2 4 3 10 2 6 1 Penetration Max . | . . . . . . . . Secondary Targets 1 | . . 1 . . . . . Max Gunslinging Chain 1 | . . 1 . . . . . Shots Hit Robots 160 | . 8 24 34 27 11 52 4 Core Hits 89 | . 1 22 18 15 6 25 2 Critical Kills . | . . . . . . . . Critical Parts Destroyed . | . . . . . . . . Critical Strikes 10 | . . 1 2 3 1 3 . Burn 1 | . . 1 . . . . . Blast 9 | . . . 2 3 1 3 . Melee Attacks 4 | . . . . 1 3 . . Impact . | . . . . . . . . Slashing . | . . . . . . . . Piercing . | . . . . . . . . Sneak Attacks 4 | . . . . 1 3 . . Combat Hostiles . | . . . . . . . . Follow-up Attacks . | . . . . . . . . Damage Inflicted 4527 | . 123 594 629 784 203 2067 127 Guns 660 | . 102 233 211 57 . 57 . Cannons 2795 | . . . 418 727 203 1320 127 Explosions 1072 | . 21 361 . . . 690 . Melee . | . . . . . . . . Ramming . | . . . . . . . . Kinetic 2549 | . . . 418 727 203 1201 . Thermal 1012 | . 21 111 211 57 . 485 127 Explosive 742 | . . 361 . . . 381 . Electromagnetic 224 | . 102 122 . . . . . Impact . | . . . . . . . . Slashing . | . . . . . . . . Piercing . | . . . . . . . . Highest Corruption 5 | . . . . . . 5 5 Average Corruption 4 | . . . . . . 3 5 Corruption Purged . | . . . . . . . . Corruption Blocked . | . . . . . . . . Effects 8 | . . . . . . 4 4 Matter Fused 4 | . . . . . . 1 3 Heat Flow Errors 1 | . . . . . . . 1 Energy Discharges 1 | . . . . . . 1 . Misfires 1 | . . . . . . 1 . Alerts 1 | . . . . . . 1 . Overload Shots . | . . . . . . . . Overflow Damage 296 | . . 2 12 6 . 276 . Projectiles 37 | . . . 12 6 . 19 . Explosions 259 | . . 2 . . . 257 . Melee . | . . . . . . . . Knockbacks 33 | . . . 2 7 3 21 . Impact . | . . . . . . . . Kinetic 30 | . . . 2 7 3 18 . Secondary 3 | . . . . . . 3 . Self-Inflicted Damage 675 | . . 16 . . . 659 . Shots 10 | . . 1 . . . 9 . Rammed . | . . . . . . . . Targets Rammed . | . . . . . . . . Kicked . | . . . . . . . . Crushed . | . . . . . . . . Highest Temperature 365 | . 192 287 287 365 111 319 249 Average Temperature 105 | . 100 145 78 139 51 80 89 Received Heat Transfer 1105 | . 30 99 96 72 63 736 9 Effects 2 | . . 1 . 1 . . . Energy Bleed 2 | . . 1 . 1 . . . Siege Activations . | . . . . . . . . Martial Activations . | . . . . . . . . Shielding Activations . | . . . . . . . . Robots Disrupted . | . . . . . . . . Combat Hostiles . | . . . . . . . . Robots Corrupted 1 | . 1 . . . . . . Combat Hostiles 1 | . 1 . . . . . . Parts Fried 3 | . 2 1 . . . . . Impact Corruptions . | . . . . . . . . Robots Melted . | . . . . . . . . Combat Hostiles . | . . . . . . . . Parts Melted 1 | . . 1 . . . . . Heat Transferred 1862 | . 50 335 531 148 . 598 200 Parts Sabotaged . | . . . . . . . . Parts Stolen . | . . . . . . . . Parts Stripped . | . . . . . . . . Power Chain Reactions 1 | . 1 . . . . . . Alert | -11 -10 -9 -9 -8 -7 -6 -6 ------- Run | Yrd Mat Mat Sto Mat Fac Fac Low Maximum Alert Level 2 | . . 1 2 1 . 1 . Low Security (%) 84 | 100 100 50 65 75 100 99 . Level 1 15 | . . 49 32 25 . . . Level 2 . | . . . 1 . . . . Level 3 . | . . . . . . . . Level 4 . | . . . . . . . . Level 5 . | . . . . . . . . High Security . | . . . . . . . . Max Security . | . . . . . . . . Peak Influence 446 | . 33 238 446 250 102 206 . Initial 187 | . . 9 91 187 102 24 . Average 97 | . 2 123 165 174 27 96 . Influence Increases 2092 | . 41 326 695 270 95 580 85 Destroy 0b10 Robot/C 1000 | . 20 180 360 160 60 180 40 Destroy 0b10 Robot/NC 90 | . . 20 20 30 5 15 . Destroy Leader 272 | . 10 64 112 36 20 30 . Allied During Kill 124 | . . . 122 2 . . . Successful Hack 49 | . 8 . 33 . 8 . . Disable Machine 285 | . . 15 30 30 . 210 . Destroy Structure 152 | . 3 47 3 12 2 85 . Lose Combat Pursuer 120 | . . . 15 . . 60 45 Influence Decreases 1963 | . 18 133 465 489 272 464 122 Entered New Map 611 | . . 14 125 259 125 26 62 Time Decay 892 | . 18 99 230 140 147 208 50 Lost Part 280 | . . 20 10 10 . 230 10 Lost Ally 180 | . . . 100 80 . . . Squads Dispatched 10 | . 1 . 1 1 2 5 . Investigation 2 | . 1 . 1 . . . . Extermination 3 | . . . . . 1 2 . Reinforcement 3 | . . . . 1 1 1 . Assault . | . . . . . . . . Garrison 2 | . . . . . . 2 . Intercept . | . . . . . . . . Searches Triggered . | . . . . . . . . Construction Impeded . | . . . . . . . . Haulers Reinforced . | . . . . . . . . Active Scanning Responses . | . . . . . . . . Cargo Convoy Interrupts . | . . . . . . . . Stealth | -11 -10 -9 -9 -8 -7 -6 -6 --------- Run | Yrd Mat Mat Sto Mat Fac Fac Low Distress Signals 6 | . 1 2 1 . . 2 . Communications Jammed . | . . . . . . . . Distress Signals . | . . . . . . . . Times Spotted 84 | . 1 12 21 13 8 22 7 Peak Tracking Total 7 | . 1 7 7 4 2 5 5 Tactical Retreats 13 | . . . 1 . 4 7 1 ECM-based Alert Blocks 13 | . . . . . 5 8 . Traps | -11 -10 -9 -9 -8 -7 -6 -6 ------- Run | Yrd Mat Mat Sto Mat Fac Fac Low Traps Triggered 1 | . 1 . . . . . . Indirectly . | . . . . . . . . Trap Hack Attempts 2 | . . . . . 2 . . Triggered . | . . . . . . . . Disarmed . | . . . . . . . . Reprogrammed 1 | . . . . . 1 . . Reused . | . . . . . . . . Traps Extracted . | . . . . . . . . Installed . | . . . . . . . . Triggered . | . . . . . . . . Machines | -11 -10 -9 -9 -8 -7 -6 -6 ---------- Run | Yrd Mat Mat Sto Mat Fac Fac Low Machines Disabled 19 | . . 1 2 2 . 14 . Max in Single Turn 4 | . . 1 1 1 . 4 . Machines Repaired . | . . . . . . . . Machines Dismantled . | . . . . . . . . Machines Sabotaged . | . . . . . . . . Overloaded Fab Kills . | . . . . . . . . Hacking | -11 -10 -9 -9 -8 -7 -6 -6 --------- Run | Yrd Mat Mat Sto Mat Fac Fac Low Machines Accessed 19 | . 3 1 8 2 2 2 1 Terminals 18 | . 3 1 8 2 2 2 . Fabricators . | . . . . . . . . Repair Stations . | . . . . . . . . Recycling Units . | . . . . . . . . Scanalyzers . | . . . . . . . . Garrison Access . | . . . . . . . . Total Hacks 40 | . 7 2 19 3 3 5 1 Successful 13 | . 3 . 7 . 1 1 1 Failed 27 | . 4 2 12 3 2 4 . Catastrophic 6 | . . 1 3 . 2 . . Database Lockouts . | . . . . . . . . Manual 11 | . . . 8 1 2 . . Terminals 39 | . 7 2 19 3 3 5 . Fabricators . | . . . . . . . . Repair Stations . | . . . . . . . . Recycling Units . | . . . . . . . . Scanalyzers . | . . . . . . . . Garrison Access . | . . . . . . . . Terminal Hacks 13 | . 3 . 7 . 1 1 1 Record 1 | . . . 1 . . . . Robot Analysis 1 | . 1 . . . . . . Open Door 3 | . . . 2 . . . 1 Open DSF 1 | . . . . . . 1 . Level Access Points 2 | . 1 . . . 1 . . Locate Traps 2 | . 1 . 1 . . . . Zone Layout 3 | . . . 3 . . . . Fabricator Hacks . | . . . . . . . . Repair Station Hacks . | . . . . . . . . Recycling Unit Hacks . | . . . . . . . . Scanalyzer . | . . . . . . . . Garrison Access Hacks . | . . . . . . . . Unauthorized Hacks . | . . . . . . . . Terminals . | . . . . . . . . Fabricators . | . . . . . . . . Repair Stations . | . . . . . . . . Recycling Units . | . . . . . . . . Scanalyzers . | . . . . . . . . Garrison Access . | . . . . . . . . Data Cores Recovered 1 | . . . 1 . . . . Used 1 | . . . 1 . . . . Hacking Detections 16 | . 3 1 7 2 1 2 . Full Trace Events 1 | . . . 1 . . . . Feedback Events . | . . . . . . . . Feedback Blocked . | . . . . . . . . Robot Schematics Acquired . | . . . . . . . . Robots Built . | . . . . . . . . Authchips . | . . . . . . . . Time . | . . . . . . . . Total Robot Build Rating . | . . . . . . . . Part Schematics Acquired . | . . . . . . . . Parts Built . | . . . . . . . . Authchips . | . . . . . . . . Time . | . . . . . . . . Total Part Build Rating . | . . . . . . . . Part Studies Acquired . | . . . . . . . . Parts Repaired . | . . . . . . . . Time . | . . . . . . . . Parts Recycled . | . . . . . . . . Recycled Matter . | . . . . . . . . Retrieved Matter . | . . . . . . . . Retrieved Components . | . . . . . . . . Parts Scanalyzed . | . . . . . . . . Part Schematics Acquired . | . . . . . . . . Parts Damaged . | . . . . . . . . Bothacking | -11 -10 -9 -9 -8 -7 -6 -6 ------------ Run | Yrd Mat Mat Sto Mat Fac Fac Low Used RIF Installer . | . . . . . . . . Robots Hacked 1 | . . . . 1 . . . Non-combat 1 | . . . . 1 . . . Combat . | . . . . . . . . Robot Hacks Applied 1 | . . . . 1 . . . parse_system 1 | . . . . 1 . . . Relay Couplers Released . | . . . . . . . . Fabnet Peak Effective % . | . . . . . . . . Robots Rewired . | . . . . . . . . Allies Hacked . | . . . . . . . . Hacks Repelled . | . . . . . . . . Allies | -11 -10 -9 -9 -8 -7 -6 -6 -------- Run | Yrd Mat Mat Sto Mat Fac Fac Low Total Allies 10 | . . . 10 . . . . Largest Group 10 | . . . 10 4 . . . Highest-Rated Group 88 | . . . 88 40 . . . Highest-Rated Ally 16 | . . . 16 16 . . . Total Orders . | . . . . . . . . Ally Attacks 62 | . . . 52 10 . . . Total Damage 564 | . . . 474 90 . . . Kills 12 | . . . 11 1 . . . Allies Corrupted . | . . . . . . . . Allies Melted . | . . . . . . . . Intel | -11 -10 -9 -9 -8 -7 -6 -6 ------- Run | Yrd Mat Mat Sto Mat Fac Fac Low Active Infowar (turns) 808 | . . . . . 466 342 . ECM 808 | . . . . . 466 342 . Robot Analysis Total 1 | . 1 . . . . . . Derelict Logs Recovered . | . . . . . . . . Drone Launches . | . . . . . . . . Drone Recoveries . | . . . . . . . . Exploration | -11 -10 -9 -9 -8 -7 -6 -6 ------------- Run | Yrd Mat Mat Sto Mat Fac Fac Low Turns Passed 2564 | 59 204 285 498 296 544 559 119 Spaces Moved 1710 | 39 150 145 232 164 413 359 208 Core 359 | 3 . . . . . 148 208 Treads . | . . . . . . . . Legs 1351 | 36 150 145 232 164 413 211 . Wheels . | . . . . . . . . Hover . | . . . . . . . . Flight . | . . . . . . . . Fastest Speed 50 | 50 120 120 120 120 122 50 50 Average Speed 118 | 117 120 146 164 120 122 110 51 Slowest Speed 550 | 120 120 190 260 123 122 550 300 Overloaded Moves . | . . . . . . . . Propulsion Burnouts . | . . . . . . . . Robots Hopped . | . . . . . . . . Potential Cave-ins . | . . . . . . . . Cave-ins Triggered . | . . . . . . . . Exploration Rate (%) 20 | 3 37 13 39 22 16 12 22 Regions Visited 7 Branch Regions 2 Pre-discovered Areas . | . . . . . . . . Known Exits Taken 2 | . 1 . . . 1 . . Unknown Exits Taken 5 | 1 . 1 1 1 . 1 . Scrap Searched 1 | . . . . . . . 1 Spaces Dug . | . . . . . . . . Terrain Destroyed 157 | . 2 53 1 11 1 88 1 Melee . | . . . . . . . . Projectile 16 | . . . 1 11 1 2 1 AOE 141 | . 2 53 . . . 86 . Terrain Rammed . | . . . . . . . . Walls Destroyed . | . . . . . . . . Machines Disabled . | . . . . . . . . Actions | -11 -10 -9 -9 -8 -7 -6 -6 --------- Run | Yrd Mat Mat Sto Mat Fac Fac Low Total 2023 | 50 161 179 306 210 441 458 218 Wait 88 | . 2 1 40 9 11 24 1 Move 1703 | 38 149 144 231 163 412 358 208 Hop . | . . . . . . . . Pick Up 27 | 5 3 4 2 3 1 9 . Fast Attach 20 | 6 1 1 3 1 1 6 1 Attach 19 | . . 2 1 2 2 10 2 Detach 5 | . . . 2 . . 3 . Swap 17 | . . 4 4 4 2 3 . Drop 25 | 1 . 4 4 4 2 9 1 Fire 113 | . 6 19 19 23 5 36 5 Melee 4 | . . . . 1 3 . . Ram . | . . . . . . . . Kick . | . . . . . . . . Crush . | . . . . . . . . Escape Stasis . | . . . . . . . . Rewire . | . . . . . . . . Trap 2 | . . . . . 2 . . Miscellaneous . | . . . . . . . . Route ------- -11/Scrapyard -10/Materials (discovered 4 exits: *Mat x3 / [*Min]) -9/Materials -9/Storage -8/Materials -7/Factory (discovered 4 exits: *Fac x4) -6/Factory -6/Lower Caves History --------- Turn | Location | Event 12 | -11/Scrapyard | Discovered new exit (range 15) 60 | -11/Scrapyard | Entered Materials 61 | -10/Materials | Met a group of wandering Federalists 125 | -10/Materials | Discovered new exit (range 16) 204 | -10/Materials | Identified exit to Materials 264 | -10/Materials | Entered another Materials area 264 | -9/Materials | Evolved 2 slots: Propulsion x1, Weapon x1 314 | -9/Materials | Build established: Mutant 362 | -9/Materials | Discovered new exit (range 11) 434 | -9/Materials | Destroyed 8 combat bots 549 | -9/Materials | Entered Storage 673 | -9/Storage | Build established: Tank 803 | -9/Storage | Assisted by bots powering up and referring to "LRC-V3" 900 | -9/Storage | Lost 5 allies 1018 | -9/Storage | Discovered new exit (range 8) 1047 | -9/Storage | Entered Materials 1047 | -8/Materials | Accompanied by 4 allies 1047 | -8/Materials | Evolved 2 slots: Propulsion x1, Weapon x1 1145 | -8/Materials | Lost 4 allies 1199 | -8/Materials | Build established: Scavenger-Tank 1326 | -8/Materials | Discovered new exit (range 15) 1343 | -8/Materials | Entered Factory 1343 | -7/Factory | Evolved 2 slots: Utility x2 1597 | -7/Factory | Identified exit to Factory 1808 | -7/Factory | Build established: Tank 1887 | -7/Factory | Entered another Factory area 1887 | -6/Factory | Evolved 2 slots: Power x1, Utility x1 2154 | -6/Factory | Lost 12 parts (2p3n4u3w) 2287 | -6/Factory | Garrison activated, responded to threat 2334 | -6/Factory | Core integrity fell below 50% 2368 | -6/Factory | Lost 8 parts (2p4u2w) 2406 | -6/Factory | Discovered new exit (range 7) 2446 | -6/Factory | Entered Lower Caves 2462 | -6/Lower Caves | Entered a destroyed Warlord outpost 2551 | -6/Lower Caves | Core integrity fell below 20% 2565 | -6/Lower Caves | Destroyed by S-27 Virus with Autogun Last Messages --------------- >>Open Door Sealed Heavy Doors opened. 02472_ System corrupted: Heat flow error (+286). 02472_ FG-M8D(b): "Have you seen a Researcher around here? I tracked it to these parts before it suddenly disappeared. I wonder what it's up to, and all by itself too..." 02473_ Searching scrap... 02473_ Found Seismic Detector. 02473_ Found 32 Matter. 02474_ Acquired 32 matter. 02508_ System corrupted: Matter fused (-7). 02523_ System corrupted: Matter fused (-10). 02550_ Dropped Hvy. Plasma Cannon. 02551_ Acquired Hvy. Plasma Cannon. 02554_ S-27 Virus destroyed. 02556_ System corrupted: Matter fused (-9). 02561_ S-27 Virus destroyed. 02565_ Hvy. Plasma Cannon destroyed. 02565_ Acquired 30 matter. Map ----- +----------------------------------------------------+ | ????????????????????????????????????## ! | | ????????????????????????????????????# # | | ????????????????????????????????????### # | | ????????????????????????????#?????????## ## ## | | ???????????????????????????# ?????????## ## ## | | ???????????????????????????# ???????### ## # | | ????????????????????????????# ?????## # | | ???????????????????????????## ?????# | | ??????????????????????????## #?????# | | ?????????????????????????? #????## # | | ????????????????????????????# ###### | | ????????????????????? #?????# ### | | ??????????????????? #????# #?## | | ??????????????????? ###?# ###??## | | ??????????????????? ### ##?????# | | ???????????????????? ### ##?????# | | ???????????????????? #?????# | | ????????????????????? ##????# | | ????????????????????? ## #????### | | ?????????????????????? ???## ##??????? | | ??????????????????????# #????# ####???????? | | ??????????????????????# ##???# #??????????? | | ??????????????????????# ????# #??????????? | | ?????????????????????## ????# # #??????##### | | ????????????????????## s[=#????# ## #??????# | | ????????????????????# s%@###### ## ##??????# ### | | ????????????????????#; == ## ####???????????? | | ????????????????????## ### ## ### #????????? | | ?????????????????????# #??# ## #????????? | | ?????????????????????# #??## # #####????????? | | ?????????????????????##???# ####????????????? | | ??????????????????????????## ##???????????????? | | ???????????????????????????## ##????????????????? | | ????????????????????????????####?????????????????? | | ?????????????????????????????????????????????????? | | ?????????????????????????????????????????????????? | | ?????????????????????????????????????????????????? | | ?????????????????????????????????????????????????? | | ?????????????????????????????????????????????????? | | ?????????????????????????????????????????????????? | | ?????????????????????????????????????????????????? | | ?????????????????????????????????????????????????? | | ?????????????????????????????????????????????????? | | ?????????????????????????????????????????????????? | | ?????????????????????????????????????????????????? | | ?????????????????????????????????????????????????? | | ?????????????????????????????????????????????????? | | ?????????????????????????????????????????????????? | | ?????????????????????????????????????????????????? | | ?????????????????????????????????????????????????? | +----------------------------------------------------+ Best States ------------- Heat Dissipation 51 Energy Generation 31 Energy Capacity 500 Matter Stores 300 Matter Capacity 450 Sight Range 16 Terrain Scan Density 10 ECM Strength 1 Power Amplification 20 Armor Coverage 150 Evasion (%) 55 Offensive Hacking 10 Item Schematics ----------------- None Robot Schematics ------------------ None Fabricated ------------ Nothing Repaired ---------- Nothing Studied --------- None Alien Tech Used ----------------- None Achievements -------------- Bumper Bots DATA ERROR: Steam Global Achievement% Hehehe I Have A Map? Organ Harvest Overwhelming Resistances Are Futile There's More Where That Came From Challenges ------------ None Game ------ Seed AnalysisDeuteriumGriptreads Manual? 0 Play Time 00:42:26 Cumulative 25.7 hours Start 2026.08.03 @ 15:55:11 End 2026.08.03 @ 16:37:11 Sessions 1 Manual Loads 0 Difficulty Rogue Special Mode None Game No. 30 Rogue 9 Adventurer 21 Explorer 0 Win Type - Total 0 Types 0/0/0/0/0/0/0/0/0/0 Lore% 18 Gallery% 20 Achievement% 17 Wizard Run 0 Options --------- Layout 1 ASCII 0 Keyboard 0 Movement Mouse Keybinds 0 Fullscreen 1 Font 32/SmallcapsGlow Map View 50x35 Zoom Use 0% Tactical HUD 1 Map Filters NONE Filters NONE Steam 1 RUN: 2352347c-b7af-4db1-a00a-5a390c54624d